{"text_format":"1","workbook":"xlsx","n_sheets":14,"sheets":["1-INFORMACION GENERAL","INFO PROYECTO","2-ENTRADAS","3-PROCESOS","4-SALIDAS","5-RESIDUOS","6-TRANSPORTED","INFO MATERIALES BASE","INFO MATERIALES","INFO D","PROYECTO CASA","DINAMXACTIV (ACTUALIZAR","DINAMICA PROCESO (ACTUALIZAR)","DASHBOARD"],"not_rendered":{"charts":22,"images":0,"macros":0,"external_links":0,"defined_names":185,"comments":0,"pivot_tables":16},"unopened":[],"bounds":{"document_bytes":16777216,"sheet_cells":100000,"rows_first":2000,"rows_last":500,"rows_between":2000,"halvings":0,"cell_chars":16384,"cell_head_chars":4096},"cells_cut":0,"cells_raw":0,"read":"whole","date_system":"1900"}

{"sheet":"1-INFORMACION GENERAL","index":0,"n_rows":25,"n_cols":3,"rows_kept":25,"cut":false,"hidden":false,"merged":[[21,1,24,2],[0,0,0,2],[20,1,20,2],[9,0,9,2],[5,0,5,2],[4,1,4,2]]}
["EVALUACIÓN AMBIENTAL PARA EDIFICACIONES"]
[]
[]
["INFORMACIÓN GENERAL "]
["Nombre del proyecto"]
["VIVIENDA UNIFAMILIAR "]
[]
[]
["Dirección"]
["AV 2 # 29-13 LA RINCONADA. CUCUTA-COLOMBIA"]
[]
["Localización"]
["Pais","Departamento /Provincia"]
["COLOMBIA","Norte de Santander"]
[]
["Uso del suelo ","Tipología de uso","Numero de pisos"]
["URBANO","RESIDENCIAL",2]
[]
[]
["PROCESO CONSTRUCTIVO"]
["Sistema constructivo","Observaciones"]
["VIGA-COLUMNA"]
[]
["Proceso"]
["MANUFACTURA"]

{"sheet":"INFO PROYECTO","index":1,"n_rows":94,"n_cols":15,"rows_kept":94,"cut":false,"hidden":false,"merged":[]}
["PAISES","ARGENTINA","BRASIL","CHILE","COLOMBIA","ESPAÑA","MEXICO "]
["ARGENTINA","Ciudad de buenos aires","Acre","Arica y parinacota","Amazonas"," A Coruña ","Ciudad de mexico"]
["BRASIL","corrientes","Alargoas","Tarapacá","Antioquía","Álava","Aguas calientes"]
["CHILE","Mendoza","Amapá","Antofagasta","Arauca","Albacete","Baja california"]
["COLOMBIA","San luis","Amazonas","Atacama","Atlántico","Alicante","Baja california sur"]
["ESPAÑA","Buenos aires","Bahia","Atacama","Bolívar","Almería","Campeche"]
["MEXICO ","entre rios","Ceará","Coquimbo","Boyacá","Asturias","Chiapas"]
[null,"Misiones","Espirito santo","Valparaíso","Caldas","Ávila","Chiguagua"]
[null,"Santa cruz","Goiás","Metropolitana"," Caquetá","Badajoz","Coahuila de Zaragoza"]
[null,"Catamarca ","Maranhao","O higgins","Casanare","Baleares","Colima"]
[null,"formosa","Mato grosso","Maule ","Cauca","Barcelona","Durango"]
[null,"Neuquen","Mato grosso do sul","Bio-Bio","Cesar","Burgos","Guanajuato "]
[null,"Santa  fe","Minas Gerais","La araucanía","Chocó","Cáceres","Guerrero"]
[null,"Chaco ","Pará","Los Rios","Córdoba","Cádiz","Hidalgo "]
[null,"Jujuy","Paraiba","Los Lagos","Cundinamarca","Cantabria","Jalisco"]
[null,"Rio negro","Paraná","Aysén ","Guainía","Castellón","Estado de mexico"]
[null,"Santiago del estero","Pernambuco ","Magallanes","Guaviare","Ciudad Real","Michoacan"]
[null,"Chubut ","Piauí",null,"Huila","Córdoba","Morelos"]
[null,"la pampa","Rio de janeiro",null,"La Guajira","Cuenca","Nayarit"]
[null,"Salta ","Rio grande do norte",null,"Magdalena","Girona","Nuevo leon"]
[null,"Tierra del fuego","Rio Grande Do Sul",null,"Meta","Granada","Oaxaca"]
[null,"Cordoba","Rondonia",null,"Nariño","Guadalajara","Puebla"]
[null,"la rioja","Roraima",null,"Norte de Santander","Gipuzkoa","Queretaro"]
[null,"San juan ","Santa catarina",null,"Putumayo","Huelva","Quintana Roo"]
[null,"Tucuman","Sao Paulo",null,"Quindío","Huesca","San luis de potosi"]
[null,null,"Sergipe",null,"Risaralda","Jaén","Sinaloa"]
[null,null,"Tocantins",null,"San Andrés y Providencia","La Rioja","Sonora"]
[null,null,"Distrito Federal",null,"Santander","Las Palmas","Tabasco"]
[null,null,null,null,"Sucre","León","Tamaulipas"]
[null,null,null,null,"Tolima","Lérida","Tlaxcala"]
[null,null,null,null,"Valle del Cauca","Lugo","Veracruz de ignacio de la llave"]
[null,null,null,null,"Vaupés","Madrid","Yucatan "]
[null,null,null,null,"Vichada","Málaga","Zacatecas"]
[null,null,null,null,null,"Murcia"]
[null,null,null,null,null,"Navarra"]
[null,null,null,null,null,"Ourense"]
[null,null,null,null,null,"Palencia"]
[null,null,null,null,null,"Pontevedra"]
[null,null,null,null,null,"Salamanca"]
[null,null,null,null,null,"Segovia"]
[null,null,null,null,null,"Sevilla"]
[null,null,null,null,null,"Soria"]
[null,null,null,null,null,"Tarragona"]
[null,null,null,null,null,"Santa Cruz de Tenerife"]
[null,null,null,null,null,"Teruel"]
[null,null,null,null,null,"Toledo"]
[null,null,null,null,null,"Valencia"]
[null,null,null,null,null,"Valladolid"]
[null,null,null,null,null,"Vizcaya"]
[null,null,null,null,null,"Zamora"]
[]
[]
[]
[]
[]
["USO DEL SUELO",null,"TIPOLOGIA ",null,"NUMERO PISOS"]
["URBANO",null,"RESIDENCIAL",null,1]
["RURAL",null,"COMERCIAL",null,2]
[null,null,"OFICINA",null,"3-5 PISOS"]
[null,null,"HOTELERO",null,"6-10 PISOS"]
[null,null,"RELIGIOSO",null,"10-20 PISOS"]
[null,null,"INDUSTRIAL",null,"MAS DE 20"]
[null,null,"DEPORTIVOS"]
[null,null,"OTROS"]
[null,null,null,null,null,null,null,null,"SUBACTIVIDAD"]
[null,null,"SISTEMA CONSTRUCTIVO",null,"PROCESO ",null,"ACTIVIDAD",null,"PRELIMINARES","CIMENTACIÓN ","ESTRUCTURA","MUROS","INSTALACIONES","ACABADOS","DEMOLICIONES"]
[null,null,"SUBTERERANEO ",null,"MANUFACTURA",null,"PRELIMINARES",null,"Replanteo","Muro ciclópeo ","Columna ","Mampostería bloque","Instalaciones eléctricas","Pintura electrostática","Demolición general"]
[null,null,"VIGA-COLUMNA",null,"TECNIFICADO",null,"CIMENTACIÓN ",null,"Descapote manual","Viga Corrida","Vigas","Mampostería adobe","Instalaciones sanitarias","Pintura aceite"]
[null,null,"ARCO-BOVÉDA",null,"INDUSTRIALIZADO",null,"ESTRUCTURA",null,"Descapote mecánica","Zapata aislada","Pantalla ","Mampostería piedra","Instalaciones hidráulicas ","Pintura vinilo "]
[null,null,"OTRAS",null,null,null,"MUROS",null,"Excavación manual ","Zapata Corrida ","Muro ESTRUCTURAL ","Madera ","Instalaciones Voz y datos ","Pañete "]
[null,null,"NUEVAS TECNOLOGÍAS",null,null,null,"INSTALACIONES",null,"Excavación mecánica ","Micropilote","Muro de carga","Drywall ","Instalaciones mecánicas ","Estuco"]
[null,null,null,null,null,null,"ACABADO",null,"Entibados","Pilote","Placa contrapiso ","Superboard",null,"Drywall "]
[null,null,null,null,null,null,"DEMOLICIONES",null,null,"Placa maciza","Placa entrepiso","Vidrio",null,"Superboard"]
[null,null,null,null,null,null,null,null,null,"Placa flotante ","Placa aligerada",null,null,"Cielo raso en madera "]
[null,null,null,null,null,null,null,null,null,"Pilote en acero ","Placa maciza",null,null,"Cielo raso fibra "]
[null,null,null,null,null,null,null,null,null,"Pilote en madera","Placa lamina colaborante",null,null,"Cielo raso metálico"]
[null,null,null,null,null,null,null,null,null,"Caisson ","Placa steel deck",null,null,"Divisiones en vidrio"]
[null,null,null,null,null,null,null,null,null,null,"Placa fácil",null,null,"barandas"]
[null,null,null,null,null,null,null,null,null,null,null,null,null,"enchape CERAMICA"]
[null,null,null,null,null,null,null,null,null,null,null,null,null,"enchape porcelanato "]
[null,null,null,null,null,null,null,null,null,null,null,null,null,"Ventanas aluminio"]
[null,null,null,null,null,null,null,null,null,null,null,null,null,"Ventanas mande"]
[null,null,null,null,null,null,null,null,null,null,null,null,null,"Puertas madera"]
[null,null,null,null,null,null,null,null,null,null,null,null,null,"Puerta metálicas "]
[null,null,null,null,null,null,null,null,null,null,null,null,null,"Piso en gres"]
[null,null,null,null,null,null,null,null,null,null,null,null,null,"Piso en mármol"]
[null,null,null,null,null,null,null,null,null,null,null,null,null,"Piso granito "]
[null,null,null,null,null,null,null,null,null,null,null,null,null,"Piso vinilo "]
[null,null,null,null,null,null,null,null,null,null,null,null,null,"Piso Madera"]
[null,null,null,null,null,null,null,null,null,null,null,null,null,"Recubrimiento madera"]
[null,null,null,null,null,null,null,null,null,null,null,null,null,"Recubrimiento mármol"]
[null,null,null,null,null,null,null,null,null,null,null,null,null,"Recubrimiento polímero "]
[null,null,null,null,null,null,null,null,null,null,null,null,null,"Recubrimiento metálico "]
[null,null,null,null,null,null,null,null,null,null,null,null,null,"envolvente especial"]

{"sheet":"2-ENTRADAS","index":2,"n_rows":54,"n_cols":7,"rows_kept":54,"cut":false,"hidden":false,"merged":[[53,4,54,6],[53,3,54,3]]}
["ACTIVIDAD","SUBACTIVIDAD","TIPO ","MATERIAL","INDICADOR (milipunto/Kilogramo)","KG","milipuntos"]
["PRELIMINARES","Replanteo","CONSTRUCCIÓN","cal (hidratada)",{"$f":"VLOOKUP(D2,'INFO MATERIALES BASE'!$A$2:$E$92,2,)","v":21},10,{"$f":"(F2*E2)","v":210}]
["PRELIMINARES","Replanteo","CONSTRUCCIÓN","Gravilla ",{"$f":"VLOOKUP(D3,'INFO MATERIALES BASE'!$A$2:$E$92,2,)","v":0.84},50,42]
["PRELIMINARES","Replanteo","CONSTRUCCIÓN","Arena ",{"$f":"VLOOKUP(D4,'INFO MATERIALES BASE'!$A$2:$E$92,2,)","v":0.82},50,41]
["PRELIMINARES","Replanteo","CONSTRUCCIÓN","Tableros de madera",{"$f":"VLOOKUP(D5,'INFO MATERIALES BASE'!$A$2:$E$92,2,)","v":39},10,390]
["CIMENTACIÓN ","Zapata aislada","METALES_FÉRRICOS","Acero ",{"$f":"VLOOKUP(D6,'INFO MATERIALES BASE'!$A$2:$E$92,2,)","v":86},90,7740]
["CIMENTACIÓN ","Zapata aislada","EMBALAJE ","Papel ",{"$f":"VLOOKUP(D7,'INFO MATERIALES BASE'!$A$2:$E$92,2,)","v":96},10,960]
["CIMENTACIÓN ","Zapata aislada","CONSTRUCCIÓN","Hormigón sin refuerzo",{"$f":"VLOOKUP(D8,'INFO MATERIALES BASE'!$A$2:$E$92,2,)","v":3.8},1225,4655]
["CIMENTACIÓN ","Zapata aislada","CONSTRUCCIÓN","Tableros de madera",{"$f":"VLOOKUP(D9,'INFO MATERIALES BASE'!$A$2:$E$92,2,)","v":39},30,1170]
["ESTRUCTURA","Columna ","METALES_FÉRRICOS","Acero ",{"$f":"VLOOKUP(D10,'INFO MATERIALES BASE'!$A$2:$E$92,2,)","v":86},200,17200]
["ESTRUCTURA","Columna ","CAUCHO","GomasEPDM",{"$f":"VLOOKUP(D11,'INFO MATERIALES BASE'!$A$2:$E$92,2,)","v":360},2,720]
["ESTRUCTURA","Columna ","CONSTRUCCIÓN","Hormigón sin refuerzo",{"$f":"VLOOKUP(D12,'INFO MATERIALES BASE'!$A$2:$E$92,2,)","v":3.8},3520,13376]
["ESTRUCTURA","Vigas","METALES_FÉRRICOS","Acero ",{"$f":"VLOOKUP(D13,'INFO MATERIALES BASE'!$A$2:$E$92,2,)","v":86},330,28380]
["ESTRUCTURA","Vigas","CONSTRUCCIÓN","Hormigón sin refuerzo",{"$f":"VLOOKUP(D14,'INFO MATERIALES BASE'!$A$2:$E$92,2,)","v":3.8},4200,{"$f":"(F14*E14)","v":15960}]
["ESTRUCTURA","Placa aligerada","CONSTRUCCIÓN","Hormigón sin refuerzo",{"$f":"VLOOKUP(D15,'INFO MATERIALES BASE'!$A$2:$E$92,2,)","v":3.8},5000,{"$f":"(F15*E15)","v":19000}]
["ESTRUCTURA","Placa aligerada","CONSTRUCCIÓN","Tableros de madera",{"$f":"VLOOKUP(D16,'INFO MATERIALES BASE'!$A$2:$E$92,2,)","v":39},50,{"$f":"(F16*E16)","v":1950}]
["ESTRUCTURA","Placa aligerada","METALES_FÉRRICOS","Acero ",{"$f":"VLOOKUP(D17,'INFO MATERIALES BASE'!$A$2:$E$92,2,)","v":86},420,{"$f":"(F17*E17)","v":36120}]
["MUROS","Mampostería bloque","CONSTRUCCIÓN","Material cerámico ",{"$f":"VLOOKUP(D18,'INFO MATERIALES BASE'!$A$2:$E$92,2,)","v":28},1,{"$f":"(F18*E18)","v":28}]
["MUROS","Mampostería bloque","CONSTRUCCIÓN","Gravilla ",{"$f":"VLOOKUP(D19,'INFO MATERIALES BASE'!$A$2:$E$92,2,)","v":0.84},10,{"$f":"(F19*E19)","v":8.4}]
["MUROS","Mampostería bloque","CONSTRUCCIÓN","Arena ",{"$f":"VLOOKUP(D20,'INFO MATERIALES BASE'!$A$2:$E$92,2,)","v":0.82},10,{"$f":"(F20*E20)","v":8.1999999999999993}]
["MUROS","Mampostería bloque","CONSTRUCCIÓN","Lana mineral",{"$f":"VLOOKUP(D21,'INFO MATERIALES BASE'!$A$2:$E$92,2,)","v":61},1,{"$f":"(F21*E21)","v":61}]
["MUROS","Mampostería bloque","PLÁSTICO","PUR bloques espuma flexible",{"$f":"VLOOKUP(D22,'INFO MATERIALES BASE'!$A$2:$E$92,2,)","v":480},5,{"$f":"(F22*E22)","v":2400}]
["INSTALACIONES","Instalaciones eléctricas","PLÁSTICO","PVC rígido ",{"$f":"VLOOKUP(D23,'INFO MATERIALES BASE'!$A$2:$E$92,2,)","v":270},12,3240]
["INSTALACIONES","Instalaciones eléctricas","PLÁSTICO","PVC rígido ",{"$f":"VLOOKUP(D24,'INFO MATERIALES BASE'!$A$2:$E$92,2,)","v":270},12,3240]
["INSTALACIONES","Instalaciones sanitarias","PLÁSTICO","PVC rígido ",{"$f":"VLOOKUP(D25,'INFO MATERIALES BASE'!$A$2:$E$92,2,)","v":270},12,3240]
["INSTALACIONES","Instalaciones sanitarias","CONSTRUCCIÓN","Cal",{"$f":"VLOOKUP(D26,'INFO MATERIALES BASE'!$A$2:$E$92,2,)","v":28},12,336]
["INSTALACIONES","Instalaciones hidráulicas ","CONSTRUCCIÓN","Cal",{"$f":"VLOOKUP(D27,'INFO MATERIALES BASE'!$A$2:$E$92,2,)","v":28},12,336]
["INSTALACIONES","Instalaciones hidráulicas ","PLÁSTICO","PVC rígido ",{"$f":"VLOOKUP(D28,'INFO MATERIALES BASE'!$A$2:$E$92,2,)","v":270},12,{"$f":"(F28*E28)","v":3240}]
["ACABADO","Pañete ","EMBALAJE ","Cartón de embalaje ",{"$f":"VLOOKUP(D29,'INFO MATERIALES BASE'!$A$2:$E$92,2,)","v":69},1,69]
["ACABADO","Pañete ","CONSTRUCCIÓN","Cemento ",{"$f":"VLOOKUP(D30,'INFO MATERIALES BASE'!$A$2:$E$92,2,)","v":20},40,800]
["ACABADO","Pañete ","CONSTRUCCIÓN","Gravilla ",{"$f":"VLOOKUP(D31,'INFO MATERIALES BASE'!$A$2:$E$92,2,)","v":0.84},20,16.8]
["ACABADO","Pañete ","CONSTRUCCIÓN","Arena ",{"$f":"VLOOKUP(D32,'INFO MATERIALES BASE'!$A$2:$E$92,2,)","v":0.82},20,16.399999999999999]
["ACABADO","Pañete ","CONSTRUCCIÓN","Lana mineral",{"$f":"VLOOKUP(D33,'INFO MATERIALES BASE'!$A$2:$E$92,2,)","v":61},5,305]
["ACABADO","Estuco","CONSTRUCCIÓN","Yeso ",{"$f":"VLOOKUP(D34,'INFO MATERIALES BASE'!$A$2:$E$92,2,)","v":9.9},30,{"$f":"(F34*E34)","v":297}]
["ACABADO","Divisiones en vidrio","CONSTRUCCIÓN","Vidrio templado revestido ",{"$f":"VLOOKUP(D35,'INFO MATERIALES BASE'!$A$2:$E$92,2,)","v":51},58,2958]
["ACABADO","Divisiones en vidrio","EMBALAJE ","Vidrio (blanco)",{"$f":"VLOOKUP(D36,'INFO MATERIALES BASE'!$A$2:$E$92,2,)","v":58},30,{"$f":"(F36*E36)","v":1740}]
["ACABADO","barandas","METALES_FÉRRICOS","Hiero fundido ",{"$f":"VLOOKUP(D37,'INFO MATERIALES BASE'!$A$2:$E$92,2,)","v":240},10,2400]
["ACABADO","enchape porcelanato ","CONSTRUCCIÓN","Material cerámico ",{"$f":"VLOOKUP(D38,'INFO MATERIALES BASE'!$A$2:$E$92,2,)","v":28},12400,{"$f":"(F38*E38)","v":347200}]
["ACABADO","Ventanas aluminio","METALES_NO_FÉRRICOS","Aluminio 100% rec",{"$f":"VLOOKUP(D39,'INFO MATERIALES BASE'!$A$2:$E$92,2,)","v":60},{"$f":"(30*8)","v":240},14400]
["ACABADO","Ventanas aluminio","CONSTRUCCIÓN","Vidrio templado revestido ",{"$f":"VLOOKUP(D40,'INFO MATERIALES BASE'!$A$2:$E$92,2,)","v":51},{"$f":"(15*8)","v":120},6120]
["ACABADO","Puertas madera","CONSTRUCCIÓN","Madera maciza",{"$f":"VLOOKUP(D41,'INFO MATERIALES BASE'!$A$2:$E$92,2,)","v":6.6},50,330]
["ACABADO","Piso en gres","CONSTRUCCIÓN","Material cerámico ",{"$f":"VLOOKUP(D42,'INFO MATERIALES BASE'!$A$2:$E$92,2,)","v":28},1000,{"$f":"(F42*E42)","v":28000}]
["ACABADO","Piso en gres","CONSTRUCCIÓN","Arena ",{"$f":"VLOOKUP(D43,'INFO MATERIALES BASE'!$A$2:$E$92,2,)","v":0.82},85,69.7]
["ACABADO","envolvente especial","METALES_FÉRRICOS","Acero ",{"$f":"VLOOKUP(D44,'INFO MATERIALES BASE'!$A$2:$E$92,2,)","v":86},50,4300]
["ACABADO","envolvente especial","METALES_FÉRRICOS","Acero alta aleación ",{"$f":"VLOOKUP(D45,'INFO MATERIALES BASE'!$A$2:$E$92,2,)","v":910},20,{"$f":"(F45*E45)","v":18200}]
["ACABADO","envolvente especial","METALES_FÉRRICOS","Hiero fundido ",{"$f":"VLOOKUP(D46,'INFO MATERIALES BASE'!$A$2:$E$92,2,)","v":240},20,{"$f":"(F46*E46)","v":4800}]
["ACABADO","envolvente especial","METALES_NO_FÉRRICOS","Aluminio 100% rec",{"$f":"VLOOKUP(D47,'INFO MATERIALES BASE'!$A$2:$E$92,2,)","v":60},20,{"$f":"(F47*E47)","v":1200}]
["ACABADO","Pintura vinilo ","CONSTRUCCIÓN","Barniz alquídico ",{"$f":"VLOOKUP(D48,'INFO MATERIALES BASE'!$A$2:$E$92,2,)","v":520},66,{"$f":"(F48*E48)","v":34320}]
[]
[]
[null,null,null,null,null,"TOTAL",{"$f":"SUM(G2:G50)","v":631593.5}]
[null,null,null,null,null,"NIVEL",{"$f":"VLOOKUP(G51,Tabla30[],3)","v":"ALTO"}]
[]
[null,null,null,"CAUSA",{"$f":"VLOOKUP(G52,'INFO D'!C3:D5,2,)","v":"Periodo de recuperación mayor a 10 años"}]

{"sheet":"3-PROCESOS","index":3,"n_rows":24,"n_cols":7,"rows_kept":24,"cut":false,"hidden":false,"merged":[[23,3,24,3],[23,4,24,6]]}
["ACTIVIDAD","SUBACTIVIDAD","TIPO ","MATERIAL ","INDICADOR (milipunto/Kilogramo)","KG/m3","milipuntos"]
["PRELIMINARES","Replanteo","CONSTRUCCIÓN","Uso del suelo",{"$f":"VLOOKUP(D2,'INFO MATERIALES BASE'!$A$2:$E$92,2,)","v":45},8,{"$f":"(F2*E2)","v":360}]
["CIMENTACIÓN ","Zapata aislada","CONSTRUCCIÓN","Construcción solida",{"$f":"VLOOKUP(D3,'INFO MATERIALES BASE'!$A$2:$E$92,2,)","v":1500},4,{"$f":"(F3*E3)","v":6000}]
["ESTRUCTURA","Columna ","CONSTRUCCIÓN","Construcción solida",{"$f":"VLOOKUP(D4,'INFO MATERIALES BASE'!$A$2:$E$92,2,)","v":1500},12,18000]
["ESTRUCTURA","Vigas","CONSTRUCCIÓN","Construcción solida",{"$f":"VLOOKUP(D5,'INFO MATERIALES BASE'!$A$2:$E$92,2,)","v":1500},14,21000]
["ESTRUCTURA","Placa aligerada","CONSTRUCCIÓN","Construcción solida",{"$f":"VLOOKUP(D6,'INFO MATERIALES BASE'!$A$2:$E$92,2,)","v":1500},30,{"$f":"(F6*E6)","v":45000}]
["MUROS","Mampostería bloque","PLÁSTICO","PUR bloques espuma flexible",{"$f":"VLOOKUP(D7,'INFO MATERIALES BASE'!$A$2:$E$92,2,)","v":480},3,{"$f":"(F7*E7)","v":1440}]
["INSTALACIONES","Instalaciones eléctricas","PLÁSTICO","PET",{"$f":"VLOOKUP(D8,'INFO MATERIALES BASE'!$A$2:$E$92,2,)","v":380},2,{"$f":"(F8*E8)","v":760}]
["INSTALACIONES","Instalaciones eléctricas","PLÁSTICO","LDPE",{"$f":"VLOOKUP(D9,'INFO MATERIALES BASE'!$A$2:$E$92,2,)","v":360},2,720]
["INSTALACIONES","Instalaciones sanitarias","PLÁSTICO","LDPE",{"$f":"VLOOKUP(D10,'INFO MATERIALES BASE'!$A$2:$E$92,2,)","v":360},2,720]
["INSTALACIONES","Instalaciones hidráulicas ","PLÁSTICO","LDPE",{"$f":"VLOOKUP(D11,'INFO MATERIALES BASE'!$A$2:$E$92,2,)","v":360},2,720]
["ACABADO","Pañete ","CONSTRUCCIÓN","Hormigón sin refuerzo",{"$f":"VLOOKUP(D12,'INFO MATERIALES BASE'!$A$2:$E$92,2,)","v":3.8},10,38]
["ACABADO","Estuco","CONSTRUCCIÓN","Hiero fundido ",{"$f":"VLOOKUP(D13,'INFO MATERIALES BASE'!$A$2:$E$92,2,)","v":240},10,2400]
["ACABADO","Divisiones en vidrio","CONSTRUCCIÓN","Construcción en metal",{"$f":"VLOOKUP(D14,'INFO MATERIALES BASE'!$A$2:$E$92,2,)","v":4300},1,4300]
["ACABADO","barandas","CONSTRUCCIÓN","Barniz alquídico ",{"$f":"VLOOKUP(D15,'INFO MATERIALES BASE'!$A$2:$E$92,2,)","v":520},66,34320]
["ACABADO","Ventanas aluminio","CONSTRUCCIÓN","Construcción en metal",{"$f":"VLOOKUP(D16,'INFO MATERIALES BASE'!$A$2:$E$92,2,)","v":4300},15,{"$f":"(F16*E16)","v":64500}]
["ACABADO","envolvente especial","CONSTRUCCIÓN","Construcción en metal",{"$f":"VLOOKUP(D17,'INFO MATERIALES BASE'!$A$2:$E$92,2,)","v":4300},15,64500]
["ACABADO","Pintura vinilo ","CONSTRUCCIÓN","Yeso ",{"$f":"VLOOKUP(D18,'INFO MATERIALES BASE'!$A$2:$E$92,2,)","v":9.9},{"$f":"+'2-ENTRADAS'!F48","v":66},653.4]
[]
[]
[null,null,null,null,null,"TOTAL",{"$f":"SUM(G2:G20)","v":265431.40000000002}]
[null,null,null,null,null,"NIVEL",{"$f":"VLOOKUP(G21,Tabla30[],3)","v":"ALTO"}]
[]
[null,null,null,"CAUSA",{"$f":"VLOOKUP(G22,'INFO D'!C3:D5,2,)","v":"Periodo de recuperación mayor a 10 años"}]

{"sheet":"4-SALIDAS","index":4,"n_rows":20,"n_cols":8,"rows_kept":20,"cut":false,"hidden":false,"merged":[[19,3,20,3],[19,4,20,7]]}
["ACTIVIDAD","SUB-ACTIVIDAD","TIPO ","MATERIAL ","INDICADOR (milipunto/Kilogramo)","FACTOR % DESPERDICIO","KG","milipuntos"]
["PRELIMINARES","Replanteo","CONSTRUCCIÓN","Uso del suelo",{"$f":"VLOOKUP(D2,'INFO MATERIALES BASE'!$A$2:$E$92,2,)","v":45},0.1,{"$f":"+Tabla832[[#This Row],[KG/m3]]","v":8},{"$f":"(F2*E2*Tabla840[[#This Row],[KG]])","v":36}]
["PRELIMINARES","Replanteo","CONSTRUCCIÓN","Construcción solida",{"$f":"VLOOKUP(D3,'INFO MATERIALES BASE'!$A$2:$E$92,2,)","v":1500},0.15,{"$f":"+G2","v":8},{"$f":"(F3*E3*Tabla840[[#This Row],[KG]])","v":1800}]
["CIMENTACIÓN ","Zapata aislada","CONSTRUCCIÓN","Construcción en metal",{"$f":"VLOOKUP(D4,'INFO MATERIALES BASE'!$A$2:$E$92,2,)","v":4300},0.15,{"$f":"+'3-PROCESOS'!F3","v":4},{"$f":"(F4*E4*Tabla840[[#This Row],[KG]])","v":2580}]
["ESTRUCTURA","Columna ","CONSTRUCCIÓN","Construcción solida",{"$f":"VLOOKUP(D5,'INFO MATERIALES BASE'!$A$2:$E$92,2,)","v":1500},0.15,{"$f":"+'3-PROCESOS'!F4","v":12},{"$f":"(F5*E5*Tabla840[[#This Row],[KG]])","v":2700}]
["ESTRUCTURA","Vigas","CONSTRUCCIÓN","Construcción solida",{"$f":"VLOOKUP(D6,'INFO MATERIALES BASE'!$A$2:$E$92,2,)","v":1500},0.15,{"$f":"+'3-PROCESOS'!F5","v":14},{"$f":"(F6*E6*Tabla840[[#This Row],[KG]])","v":3150}]
["ESTRUCTURA","Placa aligerada","CONSTRUCCIÓN","Construcción solida",{"$f":"VLOOKUP(D7,'INFO MATERIALES BASE'!$A$2:$E$92,2,)","v":1500},0.15,{"$f":"+'3-PROCESOS'!F6","v":30},{"$f":"(F7*E7*Tabla840[[#This Row],[KG]])","v":6750}]
["MUROS","Mampostería bloque","CONSTRUCCIÓN","Construcción solida",{"$f":"VLOOKUP(D8,'INFO MATERIALES BASE'!$A$2:$E$92,2,)","v":1500},0.1,{"$f":"+'3-PROCESOS'!F7","v":3},{"$f":"(F8*E8*Tabla840[[#This Row],[KG]])","v":450}]
["INSTALACIONES","Instalaciones eléctricas","CONSTRUCCIÓN","Construcción solida",{"$f":"VLOOKUP(D9,'INFO MATERIALES BASE'!$A$2:$E$92,2,)","v":1500},0.1,{"$f":"+Tabla832[[#This Row],[KG/m3]]","v":2},{"$f":"(F9*E9*Tabla840[[#This Row],[KG]])","v":300}]
["INSTALACIONES","Instalaciones sanitarias","CONSTRUCCIÓN","Construcción solida",{"$f":"VLOOKUP(D10,'INFO MATERIALES BASE'!$A$2:$E$92,2,)","v":1500},0.1,{"$f":"+Tabla832[[#This Row],[KG/m3]]","v":2},{"$f":"(F10*E10*Tabla840[[#This Row],[KG]])","v":300}]
["INSTALACIONES","Instalaciones sanitarias","CONSTRUCCIÓN","Construcción solida",{"$f":"VLOOKUP(D11,'INFO MATERIALES BASE'!$A$2:$E$92,2,)","v":1500},0.1,{"$f":"+Tabla832[[#This Row],[KG/m3]]","v":2},{"$f":"(F11*E11*Tabla840[[#This Row],[KG]])","v":300}]
["ACABADO","Pañete ","CONSTRUCCIÓN","Construcción solida",{"$f":"VLOOKUP(D12,'INFO MATERIALES BASE'!$A$2:$E$92,2,)","v":1500},0.14000000000000001,10,{"$f":"(F12*E12*Tabla840[[#This Row],[KG]])","v":2100.0000000000005}]
["ACABADO","Pintura vinilo ","CONSTRUCCIÓN","Yeso ",{"$f":"VLOOKUP(D13,'INFO MATERIALES BASE'!$A$2:$E$92,2,)","v":9.9},0.14000000000000001,{"$f":"+'2-ENTRADAS'!F48","v":66},{"$f":"(F13*E13*Tabla840[[#This Row],[KG]])","v":91.476000000000013}]
["ACABADO","envolvente especial","CONSTRUCCIÓN","Construcción en metal",{"$f":"VLOOKUP(D14,'INFO MATERIALES BASE'!$A$2:$E$92,2,)","v":4300},0.14000000000000001,15,{"$f":"(F14*E14*Tabla840[[#This Row],[KG]])","v":9030.0000000000018}]
[]
[]
[null,null,null,null,null,"TOTAL",null,{"$f":"SUM(H2:H16)","v":29587.476000000002}]
[null,null,null,null,null,null,"NIVEL",{"$f":"VLOOKUP(H17,Tabla30[],3)","v":"MEDIO "}]
[]
[null,null,null,"CAUSA",{"$f":"VLOOKUP(H18,'INFO D'!C3:D5,2,)","v":"Media afectación, el ecosistema tarde 1-10 años en recuperarse"}]

{"sheet":"5-RESIDUOS","index":5,"n_rows":25,"n_cols":7,"rows_kept":25,"cut":false,"hidden":false,"merged":[[24,3,25,3],[24,4,25,6]]}
["ACTIVIDAD","SUBACTIVIDAD","TIPO ","MATERIAL ","INDICADOR (milipunto/Kilogramo)","kg","milipuntos"]
["PRELIMINARES","Replanteo","RECICLADO","reciclado de PAPEL ",{"$f":"VLOOKUP(D2,'INFO MATERIALES BASE'!$A$2:$E$92,2,)","v":-1.2},{"$f":"(Tabla832[[#This Row],[KG/m3]]*0.1)","v":0.8},{"$f":"(F2*E2)","v":-0.96}]
["CIMENTACIÓN ","Zapata aislada","RECICLADO","Reciclado de metales de hierro",{"$f":"VLOOKUP(D3,'INFO MATERIALES BASE'!$A$2:$E$92,2,)","v":-70},{"$f":"('4-SALIDAS'!G4*'4-SALIDAS'!F4)","v":0.6},{"$f":"(F3*E3)","v":-42}]
["ESTRUCTURA","Columna ","RECICLADO","Reciclado de metales de hierro",{"$f":"VLOOKUP(D4,'INFO MATERIALES BASE'!$A$2:$E$92,2,)","v":-70},{"$f":"('4-SALIDAS'!G5*'4-SALIDAS'!F5)","v":1.7999999999999998},-125.99999999999999]
["ESTRUCTURA","Vigas","RECICLADO","Reciclado de metales de hierro",{"$f":"VLOOKUP(D5,'INFO MATERIALES BASE'!$A$2:$E$92,2,)","v":-70},{"$f":"('4-SALIDAS'!G6*'4-SALIDAS'!F6)","v":2.1},-147]
["ESTRUCTURA","Placa aligerada","RECICLADO","Reciclado de metales de hierro",{"$f":"VLOOKUP(D6,'INFO MATERIALES BASE'!$A$2:$E$92,2,)","v":-70},{"$f":"('4-SALIDAS'!G7*'4-SALIDAS'!F7)","v":4.5},{"$f":"(F6*E6)","v":-315}]
["MUROS","Mampostería bloque","RECICLADO","Incineracioncarton ",{"$f":"VLOOKUP(D7,'INFO MATERIALES BASE'!$A$2:$E$92,2,)","v":-12},{"$f":"('4-SALIDAS'!G8*'4-SALIDAS'!F8)","v":0.30000000000000004},{"$f":"(F7*E7)","v":-3.6000000000000005}]
["INSTALACIONES","Instalaciones eléctricas","RECICLADO","Reciclado de PVC",{"$f":"VLOOKUP(D8,'INFO MATERIALES BASE'!$A$2:$E$92,2,)","v":-170},{"$f":"('4-SALIDAS'!G9*'4-SALIDAS'!F9)","v":0.2},{"$f":"(F8*E8)","v":-34}]
["INSTALACIONES","Instalaciones sanitarias","RECICLADO","Reciclado de PVC",{"$f":"VLOOKUP(D9,'INFO MATERIALES BASE'!$A$2:$E$92,2,)","v":-170},0.2,-34]
["INSTALACIONES","Instalaciones hidráulicas ","RECICLADO","Reciclado de PVC",{"$f":"VLOOKUP(D10,'INFO MATERIALES BASE'!$A$2:$E$92,2,)","v":-170},0.2,-34]
["ACABADO","Pañete ","RECICLADO","Reciclado de Pe",{"$f":"VLOOKUP(D11,'INFO MATERIALES BASE'!$A$2:$E$92,2,)","v":-240},{"$f":"('4-SALIDAS'!G14*'4-SALIDAS'!F14)","v":2.1},-504]
["ACABADO","Estuco","RECICLADO","Reciclado de Pe",{"$f":"VLOOKUP(D12,'INFO MATERIALES BASE'!$A$2:$E$92,2,)","v":-240},1.4,-336]
["ACABADO","Divisiones en vidrio","RECICLADO","Reciclado de vidrio ",{"$f":"VLOOKUP(D13,'INFO MATERIALES BASE'!$A$2:$E$92,2,)","v":-15},0.01,-0.15]
["ACABADO","barandas","RECICLADO","Reciclado de aluminio ",{"$f":"VLOOKUP(D14,'INFO MATERIALES BASE'!$A$2:$E$92,2,)","v":-720},{"$f":"(10*10%)","v":1},-720]
["ACABADO","Ventanas aluminio","RECICLADO","Reciclado de aluminio ",{"$f":"VLOOKUP(D15,'INFO MATERIALES BASE'!$A$2:$E$92,2,)","v":-720},5,-3600]
["ACABADO","envolvente especial","RECICLADO","Incineración aluminio",{"$f":"VLOOKUP(D16,'INFO MATERIALES BASE'!$A$2:$E$92,2,)","v":-110},{"$f":"+'4-SALIDAS'!G14*'4-SALIDAS'!F14","v":2.1},{"$f":"(F16*E16)","v":-231}]
["ACABADO","envolvente especial","RECICLADO","Incineración PE ",{"$f":"VLOOKUP(D17,'INFO MATERIALES BASE'!$A$2:$E$92,2,)","v":-19},{"$f":"+F16","v":2.1},{"$f":"(F17*E17)","v":-39.9}]
["ACABADO","envolvente especial","RECICLADO","Reciclado de aluminio ",{"$f":"VLOOKUP(D18,'INFO MATERIALES BASE'!$A$2:$E$92,2,)","v":-720},{"$f":"+F17","v":2.1},{"$f":"(F18*E18)","v":-1512}]
["ACABADO","Pintura vinilo ","RECICLADO","Incineracioncarton ",{"$f":"VLOOKUP(D19,'INFO MATERIALES BASE'!$A$2:$E$92,2,)","v":-12},{"$f":"+'4-SALIDAS'!G13","v":66},{"$f":"(F19*E19)","v":-792}]
[]
[]
[null,null,null,null,null,"TOTAL",{"$f":"SUM(G2:G21)","v":-8471.61}]
[]
[]
[null,null,null,"CAUSA",{"$f":"VLOOKUP(G23,'INFO D'!C3:D5,2,)","v":{"$error":"#N/A"}}]

{"sheet":"6-TRANSPORTED","index":6,"n_rows":18,"n_cols":8,"rows_kept":18,"cut":false,"hidden":false,"merged":[[17,3,18,3],[17,4,18,7]]}
["ACTIVIDAD","SUBACTIVIDAD","TIPO ","MATERIAL ","INDICADOR (milipunto/Kilogramo)","kg","FACTOR % DESPERDICIO","milipuntos"]
["CIMENTACIÓN ","Zapata aislada","TRANSPORTE ","Camión 16 t ",{"$f":"VLOOKUP(D2,'INFO MATERIALES BASE'!$A$2:$E$92,2,)","v":34},{"$f":"+'4-SALIDAS'!G4","v":4},0.15,{"$f":"(G2*E2*Tabla8404142[[#This Row],[kg]])","v":20.399999999999999}]
["ESTRUCTURA","Columna ","TRANSPORTE ","Camión 16 t ",{"$f":"VLOOKUP(D3,'INFO MATERIALES BASE'!$A$2:$E$92,2,)","v":34},{"$f":"+'4-SALIDAS'!G5","v":12},0.15,{"$f":"(G3*E3*Tabla8404142[[#This Row],[kg]])","v":61.199999999999996}]
["ESTRUCTURA","Vigas","TRANSPORTE ","Camión 40 t ",{"$f":"VLOOKUP(D4,'INFO MATERIALES BASE'!$A$2:$E$92,2,)","v":15},{"$f":"+'4-SALIDAS'!G6","v":14},0.15,{"$f":"(G4*E4*Tabla8404142[[#This Row],[kg]])","v":31.5}]
["ESTRUCTURA","Placa aligerada","TRANSPORTE ","Camión 28 t ",{"$f":"VLOOKUP(D5,'INFO MATERIALES BASE'!$A$2:$E$92,2,)","v":22},{"$f":"+'4-SALIDAS'!G7","v":30},0.15,{"$f":"(G5*E5*Tabla8404142[[#This Row],[kg]])","v":99}]
["MUROS","Mampostería bloque","TRANSPORTE ","Camión 16 t ",{"$f":"VLOOKUP(D6,'INFO MATERIALES BASE'!$A$2:$E$92,2,)","v":34},{"$f":"+'4-SALIDAS'!G8","v":3},0.15,{"$f":"(G6*E6*Tabla8404142[[#This Row],[kg]])","v":15.299999999999999}]
["INSTALACIONES","Instalaciones eléctricas","TRANSPORTE ","Camión 16 t ",{"$f":"VLOOKUP(D7,'INFO MATERIALES BASE'!$A$2:$E$92,2,)","v":34},{"$f":"+'4-SALIDAS'!G9","v":2},0.15,{"$f":"(G7*E7*Tabla8404142[[#This Row],[kg]])","v":10.199999999999999}]
["INSTALACIONES","Instalaciones sanitarias","TRANSPORTE ","Camión 16 t ",{"$f":"VLOOKUP(D8,'INFO MATERIALES BASE'!$A$2:$E$92,2,)","v":34},{"$f":"+'4-SALIDAS'!G10","v":2},0.15,{"$f":"(G8*E8*Tabla8404142[[#This Row],[kg]])","v":10.199999999999999}]
["INSTALACIONES","Instalaciones hidráulicas ","TRANSPORTE ","Camión 16 t ",{"$f":"VLOOKUP(D9,'INFO MATERIALES BASE'!$A$2:$E$92,2,)","v":34},{"$f":"+'4-SALIDAS'!G11","v":2},0.15,{"$f":"(G9*E9*Tabla8404142[[#This Row],[kg]])","v":10.199999999999999}]
["ACABADO","Pañete ","TRANSPORTE ","Camión 16 t ",{"$f":"VLOOKUP(D10,'INFO MATERIALES BASE'!$A$2:$E$92,2,)","v":34},{"$f":"+'4-SALIDAS'!G14","v":15},0.15,{"$f":"(G10*E10*Tabla8404142[[#This Row],[kg]])","v":76.5}]
["ACABADO","envolvente especial","TRANSPORTE ","Camión 28 t ",{"$f":"VLOOKUP(D11,'INFO MATERIALES BASE'!$A$2:$E$92,2,)","v":22},{"$f":"+Tabla840[[#This Row],[KG]]","v":2},0.15,{"$f":"(G11*E11*Tabla8404142[[#This Row],[kg]])","v":6.6}]
["ACABADO","Pintura vinilo ","TRANSPORTE ","Camión 28 t ",{"$f":"VLOOKUP(D12,'INFO MATERIALES BASE'!$A$2:$E$92,2,)","v":22},{"$f":"+'4-SALIDAS'!G13","v":66},0.15,{"$f":"(G12*E12*Tabla8404142[[#This Row],[kg]])","v":217.79999999999998}]
[]
[]
[null,null,null,null,null,null,"TOTAL",{"$f":"SUM(H2:H14)","v":558.9}]
[null,null,null,null,null,null,"NIVEL",{"$f":"VLOOKUP(H15,Tabla30[],3)","v":"BAJO "}]
[]
[null,null,null,"CAUSA",{"$f":"VLOOKUP(H16,'INFO D'!C3:D5,2,)","v":"Baja afectación con recuperación en un 1 año"}]

{"sheet":"INFO MATERIALES BASE","index":7,"n_rows":92,"n_cols":5,"rows_kept":92,"cut":false,"hidden":false,"merged":[]}
["Material","Indicador ","Descripción","cód","grupo"]
["Hiero fundido ",240,"Hierro fundido con >2% de carbón","F1","METALES_FÉRRICOS"]
["Acero de convertidores",94,"Bloque de material con acero primario","F2","METALES_FÉRRICOS"]
["Acero de arco eléctrico",24,"Bloque de material con chatarra","F3","METALES_FÉRRICOS"]
["Acero ",86,"Bloque de material 80% primario 20% chatarra","F4","METALES_FÉRRICOS"]
["Acero alta aleación ",910,"Bloque de material con 71% acero primario y otros componentes","F5","METALES_FÉRRICOS"]
["Acero baja aleación",110,"Bloque de material con 93% de acero primario 5% de restos 1% materiales de aleación","F6","METALES_FÉRRICOS"]
["Aluminio 100% rec",60,"Bloques de material con materiales secundarios","NF1","METALES_NO_FÉRRICOS"]
["Aluminio 0% rec",780,"Bloques de material con materiales primarios","NF2","METALES_NO_FÉRRICOS"]
["Cromo",970,"Bloques de material con materiales primarios","NF3","METALES_NO_FÉRRICOS"]
["Cobre",1400,"Bloques de material con materiales primarios","NF4","METALES_NO_FÉRRICOS"]
["Plomo",640,"Bloque de material que contiene 50% de plomo secundario","NF5","METALES_NO_FÉRRICOS"]
["Niquel enriquecido",5200,"Bloques de material con materiales primarios","NF6","METALES_NO_FÉRRICOS"]
["Zinc",3200,"Bloques de material con materiales primarios","NF7","METALES_NO_FÉRRICOS"]
["Curvado-aluminio",4.6999999999999997E-5,"Una hoja de 1mm de espesor de 1 m de ancho curvada 90 ","M1","METALES"]
["Curvado-acero",8.0000000000000007E-5,"Una hoja de 1mm de espesor de 1 m de ancho curvada 90 ","M2","METALES"]
["Soldadura Fuerte (con plata, cobre o latón)",4000,"por kg de cobre soldadura, incluyendo material de cobre soldado (45% plata, 27% de cobre, 25% de latón","M3","METALES"]
["Laminado en frio de rollos",18,"Reducción de 1 mm cada bandeja de 1m2","M4","METALES"]
["Laminado",30,"por Kg producido de laminas fuera del material del bloque","M5","METALES"]
["Zincado de bandas",4300,"por m2 de 20-45 um de espesor ","M6","METALES"]
["Galvanizado en caliente",3300,"por m2. espesor 100um","M7","METALES"]
["Baño de zinc (conversión um)",49,"por m2","M8","METALES"]
["ABS",400,null,"P1","PLÁSTICO"]
["HDPE",330,null,"P2","PLÁSTICO"]
["LDPE",360,null,"P3","PLÁSTICO"]
["PET",380,null,"P4","PLÁSTICO"]
["PS (GPPS)",370,"Uso general","P5","PLÁSTICO"]
["PUR bloques espuma flexible",480,"para muebles, camas, ropa","P6","PLÁSTICO"]
["PUR espuma dura",420,null,"P7","PLÁSTICO"]
["PVC rígido ",270,"PVC rígido CON 10% de plastificantes ","P8","PLÁSTICO"]
["PVC Flexible",240,"PVC Flexible con 50% de plastificantes ",null,"PLÁSTICO"]
["GomasEPDM",360,"Vulcanizado con 44% de carbono","C1","CAUCHO"]
["Cartón de embalaje ",69,null,"E1","EMBALAJE"]
["Papel ",96,null,"E2","EMBALAJE"]
["Vidrio (marrón)",50,null,"E3","EMBALAJE"]
["Vidrio (verde)",51,null,"E4","EMBALAJE"]
["Vidrio (blanco)",58,null,"E5","EMBALAJE"]
["Amoniaco",160,"NH3","Q1","QUÍMICOS"]
["Argón ",7.8,"Gas inerte empelado en bombillas, soldadura metales ","Q2","QUÍMICOS"]
["Productos químicos inorgánicos",53,"Valor medio de producción de químicos inorgánicos","Q3","QUÍMICOS"]
["Productos químicos orgánicos",99,"Valor medio de producción de químicos orgánicos","Q4","QUÍMICOS"]
["Gasolina ",210,null,"Q5","QUÍMICOS"]
["Diesel",180,null,"Q6","QUÍMICOS"]
["H2",830,"Gas hidrogeno , empelado en proceso de reducción","Q7","QUÍMICOS"]
["H2SO4",22,"Acido sulfúrico para limpieza","Q8","QUÍMICOS"]
["HCI",39,"Acido hidro clorhídrico. Empleado para procesar metálicas y limpieza","Q9","QUÍMICOS"]
["O2",12,"Oxigeno","Q10","QUÍMICOS"]
["Silicato ",60,"Fabricación de gel ,detergentes  y limpieza metal","Q11","QUÍMICOS"]
["Urea",130,"Fertilizantes","Q12","QUÍMICOS"]
["Zeolita",160,"Utilizada en proceso reabsorción y en detergentes","Q13","QUÍMICOS"]
["Barniz alquídico ",520,"Producción y emisiones durante el barnizado, conteniendo 55% de disolventes","C1","CONSTRUCCIÓN"]
["Cemento ",20,"cemento ","C2","CONSTRUCCIÓN"]
["Material cerámico ",28,"Ladrillos etc.","C3","CONSTRUCCIÓN"]
["Hormigón sin refuerzo",3.8,"Hormigón con densidad de 2200 kg/m3","C4","CONSTRUCCIÓN"]
["Vidrio templado revestido ",51,"Para ventanas, cubierta de estaño, plata y niquel (77g/m2)","C5","CONSTRUCCIÓN"]
["Vidrio templado no revestido",49,"para ventanas ","C6","CONSTRUCCIÓN"]
["Yeso ",9.9,"Selenita para rellenos","C7","CONSTRUCCIÓN"]
["Gravilla ",0.84,"Extracción y transporte ","C8","CONSTRUCCIÓN"]
["Cal",28,"Ca0. empelado para producir cementos ","C9","CONSTRUCCIÓN"]
["cal (hidratada)",21,"CA(OH)2 empleado para fabricar mortero ","C10","CONSTRUCCIÓN"]
["Lana mineral",61,"para aislamientos","C11","CONSTRUCCIÓN"]
["Construcción solida",1500,"Estimación para un edificio por m3 de  volumen (bienes de equipo)","C12","CONSTRUCCIÓN"]
["Construcción en metal",4300,"Estimación para un edificio por m3 de  volumen (bienes de equipo)","C13","CONSTRUCCIÓN"]
["Arena ",0.82,"Extracción y transporte","C14","CONSTRUCCIÓN"]
["Tableros de madera",39,"Madera europea (Criterios FSC) ","C15","CONSTRUCCIÓN"]
["Madera maciza",6.6,"Madera europea (Criterios FSC) ","C16","CONSTRUCCIÓN"]
["Uso del suelo",45,"Ocupación como suelo urbano por m2 al año","C17","CONSTRUCCIÓN"]
["Camión de reparto <3,5 t",140,"Transporte por carretera con 30% de carga, 33% de gasolina sin plomo , 38% gasolina con plomo, 29% de Diesel ","T1","TRANSPORTE "]
["Camión 16 t ",34,"Transporte por carretera con 40% de carga ","T2","TRANSPORTE "]
["Camión 28 t ",22,"Transporte por carretera con 40% de carga ","T3","TRANSPORTE "]
["Camión 28 t volumen",8,"Transporte por carretera por m3km . Cuando el factor determinante es el volumen y no la carga","T4","TRANSPORTE "]
["Camión 40 t ",15,"Transporte por carretera con 50% carga ","T5","TRANSPORTE "]
["Transporte ferrocarril ",3.9,"Transporte tren ","T6","TRANSPORTE "]
["Buque sistema fluvial ",5,"Transporte marítimo con 65% de carga ","T7","TRANSPORTE "]
["Transporte aéreo medio ",78,"Transporte aéreo con carga 78%","T8","TRANSPORTE "]
["Transporte aérea continental ",120,"Transporte aéreo con carga 62%","T9","TRANSPORTE "]
["Transporte aéreo intercontinental",80,"Transporte aéreo con carga 78%","T10","TRANSPORTE "]
["Incineración PE ",-19,"Este indicador puede utilizarse para HDPE y LDPE ","R1","RECICLADO"]
["Incineración PP ",-13,null,"R2","RECICLADO"]
["Incineración PUR ",2.8,"Este indicador puede utilizarse todos  Los tipos de PUR","R3","RECICLADO"]
["Incineración PVC ",37,"Liberación de energía relativamente baja","R4","RECICLADO"]
["Incineración papel ",-12,"Gran liberación de energía, emisiones CO2 no contempladas","R5","RECICLADO"]
["Incineracioncarton ",-12,"Gran liberación de energía, emisiones CO2 no contempladas","R6","RECICLADO"]
["Incineración acero ",-32,"40% de separación magnética para reciclado, eliminando el hierro crudo ","R7","RECICLADO"]
["Incineración aluminio",-110,"15% de separación magnética para reciclado, eliminando aluminio primario","R8","RECICLADO"]
["Incineración vidrio",5.0999999999999996,"Se trata de un material casi inerte ","R9","RECICLADO"]
["Reciclado de Pe",-240,null,"R10","RECICLADO"]
["Reciclado de PVC",-170,null,"R11","RECICLADO"]
["reciclado de PAPEL ",-1.2,null,"R12","RECICLADO"]
["Reciclado de vidrio ",-15,null,"R13","RECICLADO"]
["Reciclado de aluminio ",-720,null,"R14","RECICLADO"]
["Reciclado de metales de hierro",-70,null,"R15","RECICLADO"]

{"sheet":"INFO MATERIALES","index":8,"n_rows":152,"n_cols":4,"rows_kept":152,"cut":false,"hidden":false,"merged":[[39,0,39,3],[26,0,26,3],[14,0,14,3],[124,0,124,3],[109,0,109,3],[87,0,87,3],[69,0,69,3],[59,0,59,3],[53,0,53,3],[52,0,52,2],[58,0,58,2],[68,0,68,2],[86,0,86,2],[108,0,108,2],[123,0,123,2],[2,0,2,2],[13,0,13,2],[25,0,25,2],[38,0,38,2],[3,0,3,3]]}
["INDICADORES"]
[]
["Metales férricos (en milipuntos por KG)"]
["METALES FÉRRICOS"]
["Material","Indicador ","Descripción","código"]
["Hiero fundido ",240,"Hierro fundido con >2% de carbón","F1"]
["Acero de convertidores",94,"Bloque de material con acero primario","F2"]
["Acero de arco eléctrico",24,"Bloque de material con chatarra","F3"]
["Acero ",86,"Bloque de material 80% primario 20% chatarra","F4"]
["Acero alta aleación ",910,"Bloque de material con 71% acero primario y otros componentes","F5"]
["Acero baja aleación",110,"Bloque de material con 93% de acero primario 5% de restos 1% materiales de aleación","F6"]
[]
[]
["Metales NO férricos (en milipuntos por KG)"]
["Metales NO férricos "]
["Material","Indicador ","Descripción","código"]
["Aluminio 100% rec",60,"Bloques de material con materiales secundarios","NF1"]
["Aluminio 0% rec",780,"Bloques de material con materiales primarios","NF2"]
["Cromo",970,"Bloques de material con materiales primarios","NF3"]
["Cobre",1400,"Bloques de material con materiales primarios","NF4"]
["Plomo",640,"Bloque de material que contiene 50% de plomo secundario","NF5"]
["Niquel enriquecido",5200,"Bloques de material con materiales primarios","NF6"]
["Zinc",3200,"Bloques de material con materiales primarios","NF7"]
[]
[]
["Procesado metales(en milipuntos )"]
["METALES"]
["Material","Indicador ","Descripción","código"]
["Curvado-aluminio",4.6999999999999997E-5,"Una hoja de 1mm de espesor de 1 m de ancho curvada 90 ","M1"]
["Curvado-acero",8.0000000000000007E-5,"Una hoja de 1mm de espesor de 1 m de ancho curvada 90 ","M2"]
["Soldadura Fuerte (con plata, cobre o latón)",4000,"por kg de cobre soldadura, incluyendo material de cobre soldado (45% plata, 27% de cobre, 25% de latón","M3"]
["Laminado en frio de rollos",18,"Reducción de 1 mm cada bandeja de 1m2","M4"]
["Laminado",30,"por Kg producido de laminas fuera del material del bloque","M5"]
["Zincado de bandas",4300,"por m2 de 20-45 um de espesor ","M6"]
["Galvanizado en caliente",3300,"por m2. espesor 100um","M7"]
["Baño de zinc (conversión um)",49,"por m2","M8"]
[]
[]
["Producción de plástico granulado (en milipuntos por KG )"]
["PLÁSTICO"]
["Material","Indicador ","Descripción","código"]
["ABS",400,null,"P1"]
["HDPE",330,null,"P2"]
["LDPE",360,null,"P3"]
["PET",380,null,"P4"]
["PS (GPPS)",370,"Uso general","P5"]
["PUR bloques espuma flexible",480,"para muebles, camas, ropa","P6"]
["PUR espuma dura",420,null,"P7"]
["PVC rígido ",270,"PVC rígido CON 10% de plastificantes ","P8"]
["PVC Flexible",240,"PVC Flexible con 50% de plastificantes ","P9"]
[]
[]
["Producción de caucho (en milipuntos por KG )"]
["CAUCHO"]
["Material","Indicador ","Descripción","código"]
["GomasEPDM",360,"Vulcanizado con 44% de carbono","C1"]
[]
[]
["Producción de embalaje (en milipuntos por KG )"]
["EMBALAJE"]
["Material","Indicador ","Descripción","código"]
["Cartón de embalaje ",69,null,"E1"]
["Papel ",96,null,"E2"]
["Vidrio (marrón)",50,null,"E3"]
["Vidrio (verde)",51,null,"E4"]
["Vidrio (blanco)",58,null,"E5"]
[]
[]
["Producción de químicos (en milipuntos por KG )"]
["QUÍMICOS"]
["Material","Indicador ","Descripción","código"]
["Amoniaco",160,"NH3","Q1"]
["Argón ",7.8,"Gas inerte empelado en bombillas, soldadura metales ","Q2"]
["Productos químicos inorgánicos",53,"Valor medio de producción de químicos inorgánicos","Q3"]
["Productos químicos orgánicos",99,"Valor medio de producción de químicos orgánicos","Q4"]
["Gasolina ",210,null,"Q5"]
["Diesel",180,null,"Q6"]
["H2",830,"Gas hidrogeno , empelado en proceso de reducción","Q7"]
["H2SO4",22,"Acido sulfúrico para limpieza","Q8"]
["HCI",39,"Acido hidro clorhídrico. Empelado para procesar metálicas y limpieza","Q9"]
["O2",12,"Oxigeno","Q10"]
["Silicato ",60,"Fabricación de gel ,detergentes  y limpieza metal","Q11"]
["Urea",130,"Fertilizantes","Q12"]
["Zeolita",160,"Utilizada en proceso reabsorción y en detergentes","Q13"]
[]
[]
["Producción de construcción (en mili puntos por KG )"]
["CONSTRUCCIÓN"]
["Material","Indicador ","Descripción","código"]
["Barniz alquídico ",520,"Producción y emisiones durante el barnizado, conteniendo 55% de disolventes","C1"]
["Cemento ",20,"cemento ","C2"]
["Material cerámico ",28,"Ladrillos etc.","C3"]
["Hormigón sin refuerzo",3.8,"Hormigón con densidad de 2200 kg/m3","C4"]
["Vidrio templado revestido ",51,"Para ventanas, cubierta de estaño, plata y niquel (77g/m2)","C5"]
["Vidrio templado no revestido",49,"para ventanas ","C6"]
["Yeso ",9.9,"Selenita para rellenos","C7"]
["Gravilla ",0.84,"Extracción y transporte ","C8"]
["Cal",28,"Ca0. empelado para producir cementos ","C9"]
["cal (hidratada)",21,"CA(OH)2 empleado para fabricar mortero ","C10"]
["Lana mineral",61,"para aislamientos","C11"]
["Construcción solida",1500,"Estimación para un edificio por m3 de  volumen (bienes de equipo)","C12"]
["Construcción en metal",4300,"Estimación para un edificio por m3 de  volumen (bienes de equipo)","C13"]
["Arena ",0.82,"Extracción y transporte","C14"]
["Tableros de madera",39,"Madera europea (Criterios FSC) ","C15"]
["Madera maciza",6.6,"Madera europea (Criterios FSC) ","C16"]
["Uso del suelo",45,"Ocupación como suelo urbano por m2 al año","C17"]
[]
[]
["Producción de transporte (en milipuntos por TKM )"]
["TRANSPORTE"]
["Material","Indicador ","Descripción","código"]
["Camión de reparto <3,5 t",140,"Transporte por carretera con 30% de carga, 33% de gasolina sin plomo , 38% gasolina con plomo, 29% de Diesel ","T1"]
["Camión 16 t ",34,"Transporte por carretera con 40% de carga ","T2"]
["Camión 28 t ",22,"Transporte por carretera con 40% de carga ","T3"]
["Camión 28 t volumen",8,"Transporte por carretera por m3km . Cuando el factor determinante es el volumen y no la carga","T4"]
["Camión 40 t ",15,"Transporte por carretera con 50% carga ","T5"]
["Transporte ferrocarril ",3.9,"Transporte tren ","T6"]
["Buque sistema fluvial ",5,"Transporte marítimo con 65% de carga ","T7"]
["Transporte aéreo medio ",78,"Transporte aéreo con carga 78%","T8"]
["Transporte aérea continental ",120,"Transporte aéreo con carga 62%","T9"]
["Transporte aéreo intercontinental",80,"Transporte aéreo con carga 78%","T10"]
[]
[]
["Producción de reciclado (en milipuntos por kg)"]
["RECICLADO"]
["Material","Indicador ","Descripción","código"]
["Incineración PE ",-19,"Este indicador puede utilizarse para HDPE y LDPE ","R1"]
["Incineración PP ",-13,null,"R2"]
["Incineración PUR ",2.8,"Este indicador puede utilizarse todos  Los tipos de PUR","R3"]
["Incineración PVC ",37,"Liberación de energía relativamente baja","R4"]
["Incineración papel ",-12,"Gran liberación de energía, emisiones CO2 no contempladas","R5"]
["Incineracioncarton ",-12,"Gran liberación de energía, emisiones CO2 no contempladas","R6"]
["Incineración acero ",-32,"40% de separación magnética para reciclado, eliminando el hierro crudo ","R7"]
["Incineración aluminio",-110,"15% de separación magnética para reciclado, eliminando aluminio primario","R8"]
["Incineración vidrio",5.0999999999999996,"Se trata de un material casi inerte ","R9"]
["Reciclado de Pe",-240,null,"R10"]
["Reciclado de PVC",-170,null,"R11"]
["reciclado de PAPEL ",-1.2,null,"R12"]
["Reciclado de vidrio ",-15,null,"R13"]
["Reciclado de aluminio ",-720,null,"R14"]
["Reciclado de metales de hierro",-70,null,"R15"]
[]
["METALES_FÉRRICOS"]
["METALES_NO_FÉRRICOS"]
["METALES"]
["PLÁSTICO"]
["CAUCHO"]
["EMBALAJE "]
["QUÍMICOS"]
["CONSTRUCCIÓN"]
["TRANSPORTE "]
["RECICLADO"]

{"sheet":"INFO D","index":9,"n_rows":5,"n_cols":4,"rows_kept":5,"cut":false,"hidden":false,"merged":[]}
["MILIPUNTOS MINIMO","MILIPUNTOS MAXIMO","NIVEL DE IMPACTO","CAUSA"]
[0,0,"NULO","No afectación al medio ambiente "]
[0.1,10000,"BAJO ","Baja afectación con recuperación en un 1 año"]
[10001,50000,"MEDIO ","Media afectación, el ecosistema tarde 1-10 años en recuperarse"]
[50002,100000,"ALTO","Periodo de recuperación mayor a 10 años"]

{"sheet":"PROYECTO CASA","index":10,"n_rows":34,"n_cols":7,"rows_kept":34,"cut":false,"hidden":false,"merged":[[32,6,32,8]]}
["Actividad ","Subactividad","Unidad","cantidad","Kg","total"]
["PRELIMINARES","Replanteo","M2",213,null,{"$f":"(Tabla32[[#This Row],[Kg]]*Tabla32[[#This Row],[cantidad]])","v":0}]
["PRELIMINARES","Descapote manual","M2",120,null,{"$f":"(Tabla32[[#This Row],[Kg]]*Tabla32[[#This Row],[cantidad]])","v":0}]
["CIMENTACIÓN ","Zapata aislada","M3",5,null,{"$f":"(Tabla32[[#This Row],[Kg]]*Tabla32[[#This Row],[cantidad]])","v":0}]
["CIMENTACIÓN ","Placa maciza","M2",120,null,{"$f":"(Tabla32[[#This Row],[Kg]]*Tabla32[[#This Row],[cantidad]])","v":0}]
["ESTRUCTURA","Columna ","M3",9,null,{"$f":"(Tabla32[[#This Row],[Kg]]*Tabla32[[#This Row],[cantidad]])","v":0}]
["ESTRUCTURA","Placa aligerada","M3",48,null,{"$f":"(Tabla32[[#This Row],[Kg]]*Tabla32[[#This Row],[cantidad]])","v":0}]
["ESTRUCTURA","Pantalla ","M3",3.6,null,{"$f":"(Tabla32[[#This Row],[Kg]]*Tabla32[[#This Row],[cantidad]])","v":0}]
["MUROS","Mampostería bloque","M2",190,null,{"$f":"(Tabla32[[#This Row],[Kg]]*Tabla32[[#This Row],[cantidad]])","v":0}]
["MUROS","Drywall ","M2",20,null,{"$f":"(Tabla32[[#This Row],[Kg]]*Tabla32[[#This Row],[cantidad]])","v":0}]
["INSTALACIONES","Instalaciones eléctricas","ML",80,null,{"$f":"(Tabla32[[#This Row],[Kg]]*Tabla32[[#This Row],[cantidad]])","v":0}]
["INSTALACIONES","Instalaciones sanitarias","ML",40,null,{"$f":"(Tabla32[[#This Row],[Kg]]*Tabla32[[#This Row],[cantidad]])","v":0}]
["INSTALACIONES","Instalaciones hidráulicas ","ML",40,null,{"$f":"(Tabla32[[#This Row],[Kg]]*Tabla32[[#This Row],[cantidad]])","v":0}]
["ACABADO","Pañete ","M2",{"$f":"(190*2)","v":380},null,{"$f":"(Tabla32[[#This Row],[Kg]]*Tabla32[[#This Row],[cantidad]])","v":0}]
["ACABADO","Estuco","M2",{"$f":"(190*2)","v":380},null,{"$f":"(Tabla32[[#This Row],[Kg]]*Tabla32[[#This Row],[cantidad]])","v":0}]
["ACABADO","Divisiones en vidrio","M2",15,null,{"$f":"(Tabla32[[#This Row],[Kg]]*Tabla32[[#This Row],[cantidad]])","v":0}]
["ACABADO","barandas","ML",20,null,{"$f":"(Tabla32[[#This Row],[Kg]]*Tabla32[[#This Row],[cantidad]])","v":0}]
["ACABADO","enchape porcelanato ","M2",50,null,{"$f":"(Tabla32[[#This Row],[Kg]]*Tabla32[[#This Row],[cantidad]])","v":0}]
["ACABADO","Ventanas aluminio","M2",50,null,{"$f":"(Tabla32[[#This Row],[Kg]]*Tabla32[[#This Row],[cantidad]])","v":0}]
["ACABADO","Puertas madera","UND",11,null,{"$f":"(Tabla32[[#This Row],[Kg]]*Tabla32[[#This Row],[cantidad]])","v":0}]
["ACABADO","Piso en gres","M2",20,null,{"$f":"(Tabla32[[#This Row],[Kg]]*Tabla32[[#This Row],[cantidad]])","v":0}]
["ACABADO","Recubrimiento mármol","M2",80,null,{"$f":"(Tabla32[[#This Row],[Kg]]*Tabla32[[#This Row],[cantidad]])","v":0}]
["ACABADO","envolvente especial","M2",10,null,{"$f":"(Tabla32[[#This Row],[Kg]]*Tabla32[[#This Row],[cantidad]])","v":0}]
["ACABADO","Pintura vinilo ","M2",190,null,{"$f":"(Tabla32[[#This Row],[Kg]]*Tabla32[[#This Row],[cantidad]])","v":0}]
["DEMOLICIONES","Demolición general","M3",5,10,{"$f":"(Tabla32[[#This Row],[Kg]]*Tabla32[[#This Row],[cantidad]])","v":50}]
[]
[]
[]
["ENTRADAS ","PROCESOS","SALIDAS","RESIDUOS","TRANSPORTE"]
[{"$f":"+GETPIVOTDATA(\"milipuntos\",DASHBOARD!$A$23)","v":631593.5},{"$f":"+GETPIVOTDATA(\"milipuntos\",DASHBOARD!$B$23)","v":265431.40000000002},{"$f":"+GETPIVOTDATA(\"milipuntos\",DASHBOARD!$C$23)","v":29587.476000000002},{"$f":"+GETPIVOTDATA(\"milipuntos\",DASHBOARD!$D$23)","v":-8471.61},{"$f":"+GETPIVOTDATA(\"milipuntos\",DASHBOARD!$E$23)","v":558.9}]
[]
[]
["1- ENTRADAS ","2-PROCESOS","3- SALIDAS","4-RESIDUOS","5-TRANSPORTE",null,"SE DEBE ACTUALIZAR"]
[631593.5,265431.40000000002,29587.476000000002,-8471.61,47.85]

{"sheet":"DINAMXACTIV (ACTUALIZAR","index":11,"n_rows":157,"n_cols":5,"rows_kept":157,"cut":false,"hidden":false,"merged":[]}
["ENTRADAS "]
[]
["Etiquetas de fila","Suma de milipuntos"]
["ACABADO",467541.9]
["barandas",2400]
["Divisiones en vidrio",4698]
["enchape porcelanato ",347200]
["envolvente especial",28500]
["Estuco",297]
["Pañete ",1207.1999999999998]
["Pintura vinilo ",34320]
["Piso en gres",28069.7]
["Puertas madera",330]
["Ventanas aluminio",20520]
["CIMENTACIÓN ",14525]
["Zapata aislada",14525]
["ESTRUCTURA",132706]
["Columna ",31296]
["Placa aligerada",57070]
["Vigas",44340]
["INSTALACIONES",13632]
["Instalaciones eléctricas",6480]
["Instalaciones hidráulicas ",3576]
["Instalaciones sanitarias",3576]
["MUROS",2505.6]
["Mampostería bloque",2505.6]
["PRELIMINARES",683]
["Replanteo",683]
["Total general",631593.5]
[]
[]
[]
[]
[]
[]
["SALIDAS"]
[]
["Etiquetas de fila","Suma de milipuntos"]
["ACABADO",11221.476000000002]
["envolvente especial",9030.0000000000018]
["Pañete ",2100.0000000000005]
["Pintura vinilo ",91.476000000000013]
["CIMENTACIÓN ",2580]
["Zapata aislada",2580]
["ESTRUCTURA",12600]
["Columna ",2700]
["Placa aligerada",6750]
["Vigas",3150]
["INSTALACIONES",900]
["Instalaciones eléctricas",300]
["Instalaciones sanitarias",600]
["MUROS",450]
["Mampostería bloque",450]
["PRELIMINARES",1836]
["Replanteo",1836]
["Total general",29587.476000000002]
[]
[]
[]
[]
[]
[]
[]
[]
[]
[]
[]
[]
[]
[]
["RESIDUOS"]
[]
["Etiquetas de fila","Suma de milipuntos"]
["ACABADO",-7735.05]
["barandas",-720]
["Divisiones en vidrio",-0.15]
["envolvente especial",-1782.9]
["Estuco",-336]
["Pañete ",-504]
["Pintura vinilo ",-792]
["Ventanas aluminio",-3600]
["CIMENTACIÓN ",-42]
["Zapata aislada",-42]
["ESTRUCTURA",-588]
["Columna ",-125.99999999999999]
["Placa aligerada",-315]
["Vigas",-147]
["INSTALACIONES",-102]
["Instalaciones eléctricas",-34]
["Instalaciones hidráulicas ",-34]
["Instalaciones sanitarias",-34]
["MUROS",-3.6000000000000005]
["Mampostería bloque",-3.6000000000000005]
["PRELIMINARES",-0.96]
["Replanteo",-0.96]
["Total general",-8471.6099999999988]
[]
[]
[]
[]
[]
[]
[]
["PROCESO"]
[]
["Etiquetas de fila","Suma de milipuntos"]
["ACABADO",170711.4]
["barandas",34320]
["Divisiones en vidrio",4300]
["envolvente especial",64500]
["Estuco",2400]
["Pañete ",38]
["Pintura vinilo ",653.4]
["Ventanas aluminio",64500]
["CIMENTACIÓN ",6000]
["Zapata aislada",6000]
["ESTRUCTURA",84000]
["Columna ",18000,null,null,"|"]
["Placa aligerada",45000]
["Vigas",21000]
["INSTALACIONES",2920]
["Instalaciones eléctricas",1480]
["Instalaciones hidráulicas ",720]
["Instalaciones sanitarias",720]
["MUROS",1440]
["Mampostería bloque",1440]
["PRELIMINARES",360]
["Replanteo",360]
["Total general",265431.40000000002]
[]
[]
[]
[]
[]
[]
[]
[]
["TRANSPORTE"]
[]
["Etiquetas de fila","Suma de milipuntos"]
["ACABADO",300.89999999999998]
["envolvente especial",6.6]
["Pañete ",76.5]
["Pintura vinilo ",217.79999999999998]
["CIMENTACIÓN ",20.399999999999999]
["Zapata aislada",20.399999999999999]
["ESTRUCTURA",191.7]
["Columna ",61.199999999999996]
["Placa aligerada",99]
["Vigas",31.5]
["INSTALACIONES",30.599999999999998]
["Instalaciones eléctricas",10.199999999999999]
["Instalaciones hidráulicas ",10.199999999999999]
["Instalaciones sanitarias",10.199999999999999]
["MUROS",15.299999999999999]
["Mampostería bloque",15.299999999999999]
["Total general",558.90000000000009]

{"sheet":"DINAMICA PROCESO (ACTUALIZAR)","index":12,"n_rows":70,"n_cols":2,"rows_kept":70,"cut":false,"hidden":false,"merged":[]}
["ENTRADAS ",1]
[]
["Etiquetas de fila","Suma de milipuntos"]
["ACABADO",467541.9]
["CIMENTACIÓN ",14525]
["ESTRUCTURA",132706]
["INSTALACIONES",13632]
["MUROS",2505.6]
["PRELIMINARES",683]
["Total general",631593.5]
[]
[]
[]
[]
[]
[]
[]
[3]
["SALIDAS"]
[]
["Etiquetas de fila","Suma de milipuntos"]
["ACABADO",11221.476000000002]
["CIMENTACIÓN ",2580]
["ESTRUCTURA",12600]
["INSTALACIONES",900]
["MUROS",450]
["PRELIMINARES",1836]
["Total general",29587.476000000002]
[]
[]
[]
[2]
["PROCESO"]
[]
["Etiquetas de fila","Suma de milipuntos"]
["ACABADO",170711.4]
["CIMENTACIÓN ",6000]
["ESTRUCTURA",84000]
["INSTALACIONES",2920]
["MUROS",1440]
["PRELIMINARES",360]
["Total general",265431.40000000002]
[]
[]
[]
[4]
["RESIDUOS"]
[]
["Etiquetas de fila","Suma de milipuntos"]
["ACABADO",-7735.0499999999993]
["CIMENTACIÓN ",-42]
["ESTRUCTURA",-588]
["INSTALACIONES",-102]
["MUROS",-3.6000000000000005]
["PRELIMINARES",-0.96]
["Total general",-8471.6099999999988]
[]
[]
[]
[]
[5]
["TRANSPORTE"]
[]
["Etiquetas de fila","Suma de milipuntos"]
["ACABADO",300.89999999999998]
["CIMENTACIÓN ",20.399999999999999]
["ESTRUCTURA",191.7]
["INSTALACIONES",30.599999999999998]
["MUROS",15.299999999999999]
["Total general",558.9]

{"sheet":"DASHBOARD","index":13,"n_rows":28,"n_cols":7,"rows_kept":28,"cut":false,"hidden":false,"merged":[[26,3,28,3],[3,0,3,2],[12,4,12,5],[14,4,14,5],[15,4,15,5],[18,0,18,4],[4,0,4,2],[11,1,11,2],[12,1,12,2],[27,1,28,2]]}
["EVALUACIÓN AMBIENTAL PARA EDIFICACIONES "]
[]
[]
["Nombre del proyecto"]
[{"$f":"+'1-INFORMACION GENERAL'!A6:C6","v":"VIVIENDA UNIFAMILIAR "}]
[]
[]
["Dirección"]
[{"$f":"+'1-INFORMACION GENERAL'!A10:C10","v":"AV 2 # 29-13 LA RINCONADA. CUCUTA-COLOMBIA"}]
[]
["Localización",null,null,null,"PROCESO CONSTRUCTIVO"]
["Pais","Departamento /Provincia",null,null,"Sistema constructivo"]
[{"$f":"+P","v":"COLOMBIA"},{"$f":"+'1-INFORMACION GENERAL'!B14","v":"Norte de Santander"},null,null,{"$f":"+'1-INFORMACION GENERAL'!A22","v":"VIGA-COLUMNA"}]
[]
["Uso del suelo ","Tipología  uso","Numero de pisos",null,"Proceso"]
[{"$f":"+USO","v":"URBANO"},{"$f":"+TIPO","v":"RESIDENCIAL"},{"$f":"+NUM","v":2},null,{"$f":"+'1-INFORMACION GENERAL'!A25","v":"MANUFACTURA"}]
[]
[]
["PROYECTO VIVIENDA UNIFAMILIAR "]
[null,null,"AREA:213M2"]
[]
[]
["ENTRADAS ","PROCESOS","SALIDAS","RESIDUOS","TRANSPORTE",null,"TOTAL MILIPUNTOS"]
[631593.5,265431.40000000002,29587.476000000002,-8471.61,558.9,null,{"$f":"SUM(A24:F24)","v":918699.66600000008}]
[]
[]
[null,null,null,{"$f":"VLOOKUP(G24,Tabla30[],3)","v":"ALTO"}]
[null,"NIVEL DE IMPACTO"]